Cogmind - Beta 15 @@@ ROGUE MODE // 2025.06.12 @ 06:16:00 Player: CL-1C0 Result: Destroyed by P-60 Hacker with Shock Rifle Performance ------------- Evolutions (3) 1500 Regions Visited (10) 2000 Robots Destroyed (68) 340 Value Destroyed (3185) 3185 Prototype IDs (6) 120 Alien Tech Used (0) 0 Bonus (3130) 3130 TOTAL SCORE: 10275 Bonus ------- High Alert Combat Kills 324 Follower Combat Kills 506 Entered Garrisons 800 Used RIF Installer 1500 Cogmind --------- Core Integrity 0/700 Matter 300/300 Energy 100/100 System Corruption 14% Temperature Cool (0) Movement Core (150) Ox2 Location -7/Garrison Parts ------- > --- POWER (1) -------- (None) > --- PROPULSION (4) --- Armored Wheel > --- UTILITY (6) ------ Improved Melee Analysis Suite Core Shielding Relay Coupler [NC] (31) Relay Coupler [Brawler] (31) Relay Coupler [Sentry] (22) Relay Coupler [Hunter] (18) > --- WEAPON (2) ------- Remote Datajack Axe > --- INVENTORY (5) ---- Relay Coupler [Behemoth] (12) Great Maul Peak State ------------ > --- POWER ------------ Improved Deuterium Engine > --- PROPULSION ------- Improved Heavy Treads Improved Heavy Treads > --- UTILITY ---------- Advanced Heat Sink Huge Storage Unit Improved Medium Armor Plating Relay Coupler [NC] Relay Coupler [Swarmer] Relay Coupler [Hunter] > --- WEAPON ----------- Gatling Laser Railgun > --- INVENTORY -------- Deuterium Engine Light Deuterium Engine Improved Heavy Treads Coolant Injector Cargo Storage Unit Authchip [R/Combat] Authchip [R/Combat] Authchip [R/Combat] Authchip [R/Combat] Relay Coupler [NC] Relay Coupler [Cutter] Relay Coupler [Brawler] Relay Coupler [Sentry] Relay Coupler [Sentry] Relay Coupler [Demolisher] Relay Coupler [Demolisher] Relay Coupler [Heavy] Remote Datajack Remote Datajack Remote Datajack Great Maul Great Maul Great Maul [Rating: 71] Favorites ----------- Power Cooled Ion Engine Engine Cooled Ion Engine Power Core Enhanced Nuclear Core Reactor Particle Reactor Propulsion Advanced Treads Treads Advanced Treads Leg Carbon-fiber Leg Wheel Compact Wheel Flight Unit Flight Unit Utility Relay Coupler [Hunter] Device Gravity Neutralizer Storage Cargo Storage Unit Processor Visual Processing Unit Hackware Relay Coupler [Hunter] Protection Improved Medium Armor Plating Weapon Flail Energy Gun Wave Gun Ballistic Gun Improved Assault Rifle Launcher Rocket Launcher Special Weapon Remote Datajack Impact Weapon Flail Slashing Weapon Axe Build | -11 -10 -9 -8 -8 -8 -8 -7 -7 -7 -7 ------- Run | Yrd Mat Mat Mat Gar Mat Gar Fac Gar Fac Gar Slots Evolved 6 | . . 2 2 . . . 2 . . . Power . | . . . . . . . . . . . Propulsion 2 | . . 2 . . . . . . . . Utility 4 | . . . 2 . . . 2 . . . Weapon . | . . . . . . . . . . . Parts Attached 82 | 2 . 7 . . 16 7 8 18 5 19 Power 8 | . . 1 . . 2 . 1 2 . 2 Engine 6 | . . 1 . . 2 . . 2 . 1 Core 1 | . . . . . . . 1 . . . Reactor 1 | . . . . . . . . . . 1 Propulsion 27 | 2 . 3 . . 9 1 2 5 . 5 Treads 12 | 2 . . . . 3 1 . 5 . 1 Leg 4 | . . . . . 1 . . . . 3 Wheel 3 | . . . . . . . 2 . . 1 Hover . | . . . . . . . . . . . Flight 8 | . . 3 . . 5 . . . . . Utility 30 | . . . . . 4 3 5 7 4 7 Device 4 | . . . . . . . 2 1 . 1 Storage 2 | . . . . . . . . 1 1 . Processor 3 | . . . . . 1 . . . 1 1 Hackware 11 | . . . . . . 2 2 1 2 4 Protection 10 | . . . . . 3 1 1 4 . 1 Artifact . | . . . . . . . . . . . Weapon 17 | . . 3 . . 1 3 . 4 1 5 Energy Gun 2 | . . . . . . . . . . 2 Energy Cannon . | . . . . . . . . . . . Ballistic Gun 3 | . . 2 . . . . . . . 1 Ballistic Cannon . | . . . . . . . . . . . Launcher 1 | . . . . . . 1 . . . . Special Weapon 6 | . . . . . . 2 . 3 . 1 Impact Weapon 3 | . . 1 . . 1 . . . . 1 Slashing Weapon 2 | . . . . . . . . 1 1 . Piercing Weapon . | . . . . . . . . . . . Special Melee Weapon . | . . . . . . . . . . . Unidentified Prototypes 6 | . . 3 . . 1 . 1 1 . . Corrupted Parts 1 | . . . . . . . . 1 . . System Corruption 13 | . . . . . . . . 13 . . Parts Lost 30 | . . . . 2 1 1 . 10 . 16 Power 5 | . . . . . . . . 2 . 3 Propulsion 11 | . . . . 2 1 . . 2 . 6 Utility 8 | . . . . . . 1 . 4 . 3 Weapon 6 | . . . . . . . . 2 . 4 Highest Loss Streak 10 | . . . . 2 1 1 . 5 . 10 To Critical Strikes . | . . . . . . . . . . . Average Backups 11 | 4 . 3 4 4 3 4 4 20 17 8 Power . | 1 . 1 2 2 1 . . 1 1 . Propulsion 1 | 3 . . . . . . . 4 1 . Utility 5 | . . . . . . 1 . 10 12 5 Weapon 1 | . . . 2 2 . . 1 1 . 1 Tool/Special . | . . . . . . . . . . . Unused Backups 18 | . . . . . . 1 . 1 . 16 Power 1 | . . . . . . . . . . 1 Propulsion . | . . . . . . . . . . . Utility 15 | . . . . . . 1 . 1 . 13 Weapon 2 | . . . . . . . . . . 2 Tool/Special . | . . . . . . . . . . . Average Slot Usage (%) 72 | . 28 36 36 33 59 86 95 72 71 73 Engine 5 | . . . . . 6 9 1 6 7 2 Treads 15 | . 28 17 . . 12 30 15 14 15 4 Leg 2 | . . . . . . 4 . . . 13 Wheel 2 | . . . . . . . 14 1 . 1 Flight 2 | . . 5 27 24 11 . . . . . Device 3 | . . . . . . . 5 6 6 1 Storage 3 | . . . . . . . . 6 7 2 Processor 3 | . . . . . 4 9 7 . 5 3 Hackware 12 | . . . . . . 1 21 16 11 26 Protection 6 | . . . . . 7 16 6 5 . 4 Ballistic Gun 2 | . . 10 . . 15 1 . . . . Special Weapon 3 | . . . . . . 3 7 3 7 3 Impact Weapon 4 | . . 3 9 8 1 8 7 3 . . Slashing Weapon 2 | . . . . . . . . 2 6 5 Peak Build Rating 71 | 2 2 11 10 10 31 31 40 69 63 71 Average Rating 41 | 1 2 6 10 9 17 26 34 63 60 39 On Entrance 22 | 6 2 2 10 10 4 31 30 37 56 60 Naked Turns . | . . . . . . . . . . . Heaviest Build 170 | . . 6 2 2 33 32 20 170 156 105 Greatest Support 162 | 3 3 9 9 9 66 86 86 162 162 150 Greatest Overweight (x) 1 | . . 1 . . 1 . . 1 . 1 Average Overweight (x) . | . . . . . . . . . . . Largest Inventory Capacity 30 | 5 5 5 5 5 5 5 5 30 30 25 Average Capacity 15 | 5 5 5 5 5 5 5 5 28 29 11 Most Carried 30 | 4 . 5 4 4 5 5 5 30 22 25 Average Carried 13 | 2 . 3 4 4 3 4 4 24 19 9 Final Capacity 30 | 5 5 5 5 5 5 5 5 30 25 5 Final Carried 21 | . . 4 4 4 5 5 5 21 20 2 Class Distribution -------------------- 54% | Bothacker-Mutant 36% | Mutant 4% | Hauler-Mutant Dominant Class ---------------- Mutant | -10/Materials Mutant | -9/Materials Mutant | -8/Materials Mutant | -8/Garrison Mutant | -8/Materials Mutant | -8/Garrison Bothacker-Mutant | -7/Factory Bothacker-Mutant | -7/Garrison Bothacker-Mutant | -7/Factory Bothacker-Mutant | -7/Garrison Resources | -11 -10 -9 -8 -8 -8 -8 -7 -7 -7 -7 ----------- Run | Yrd Mat Mat Mat Gar Mat Gar Fac Gar Fac Gar Matter Collected 1929 | 200 . 138 . . 179 398 161 394 10 449 Remotely . | . . . . . . . . . . . Salvage Created 3202 | . 20 447 . . 253 153 70 1476 10 773 Parts 121 | . 1 9 . . 14 16 . 61 . 20 Haulers Intercepted 2 | . . 2 . . . . . . . . Recyclers Shooed 1 | . . 1 . . . . . . . . Parts Field Recycled . | . . . . . . . . . . . Retrieved Matter . | . . . . . . . . . . . Parts Self-Destructed . | . . . . . . . . . . . Prevented . | . . . . . . . . . . . Kills | -11 -10 -9 -8 -8 -8 -8 -7 -7 -7 -7 ------- Run | Yrd Mat Mat Mat Gar Mat Gar Fac Gar Fac Gar Combat Hostiles Destroyed 56 | . 1 3 . . 6 16 . 18 1 11 Melee 19 | . . . . . . 1 . 12 . 6 Guns 13 | . . 3 . . 6 . . . . 4 AOE 18 | . . . . . . 13 . 5 . . Classes Destroyed 11 | . 1 3 . . 3 1 2 1 . . Worker 1 | . . . . . . . 1 . . . Builder 3 | . . . . . . . 3 . . . Tunneler 1 | . . . . . 1 . . . . . Hauler 2 | . . 2 . . . . . . . . Recycler 3 | . . 3 . . . . . . . . Watcher 1 | . . . . . 1 . . . . . Swarmer 23 | . 1 . . . 3 13 . . 1 5 Grunt 25 | . . 3 . . 2 2 . 13 . 5 Duelist 2 | . . . . . . . . 1 . 1 Sentry 5 | . . . . . 1 . . 4 . . Programmer 1 | . . . . . . 1 . . . . Butcher 1 | . . . . . . . . 1 . . Best Kill Streak 7 | . 1 7 . . 2 4 3 3 1 3 Combat Bots Only 4 | . 1 3 . . 2 4 . 3 1 3 Max Kills in Single Turn 3 | . 1 2 . . 1 3 1 2 1 1 Gunslinging 1 | . . 1 . . . . . . . . Exploded 3 | . . . . . . 3 . 2 . . Melee 1 | . . . . . . 1 . 1 . 1 Uniques/NPCs Destroyed . | . . . . . . . . . . . Combat | -11 -10 -9 -8 -8 -8 -8 -7 -7 -7 -7 -------- Run | Yrd Mat Mat Mat Gar Mat Gar Fac Gar Fac Gar Hostile Shots Fired 830 | . 23 29 . 60 35 70 50 296 9 258 Missed 275 | . 10 5 . 31 12 18 23 81 3 92 Hits 555 | . 13 24 . 29 23 52 27 215 6 166 Melee 25 | . . . . 5 . . . 9 . 11 Projectile 530 | . 13 24 . 24 23 52 27 206 6 155 AOE 2 | . . . . 2 . . . . . . Critical Strikes 34 | . 1 . . 3 . 3 . 13 . 14 Actively Blocked 1 | . . . . . . . . . . 1 Damage Taken 7973 | . 115 284 . 520 290 703 328 2850 97 2786 Core 1317 | . 16 88 . 300 126 76 46 236 17 412 Absorbed by Shields 256 | . . . . 16 . . . 183 . 57 Redirected to Shielding 18 | . . . . . . . . . . 18 Ignored by Resistances 56 | . . . . . . 53 3 . . . Core Remaining (%) 69 | 100 93 78 . . . 8 . . . . Volleys Fired 117 | . . 16 . . 34 6 10 16 6 29 Largest 2 | . . 2 . . 2 1 1 1 1 2 Hottest 115 | . . 46 . . 46 33 5 33 5 115 Shots Fired 169 | . . 32 . . 68 6 10 16 6 31 Gun 125 | . . 32 . . 68 . . . . 25 Cannon . | . . . . . . . . . . . Launcher 15 | . . . . . . 6 . 9 . . Special 29 | . . . . . . . 10 7 6 6 Kinetic 118 | . . 32 . . 68 . . . . 18 Thermal 7 | . . . . . . . . . . 7 Explosive 15 | . . . . . . 6 . 9 . . Electromagnetic . | . . . . . . . . . . . Robot Hit Streak 18 | . . 18 . . 7 4 5 8 5 9 Robot Miss Streak 3 | . . 2 . . 3 . 2 1 1 3 Penetration Max 1 | . . . . . . . . . . 1 Secondary Targets 4 | . . 4 . . . . . . . . Max Gunslinging Chain 1 | . . 1 . . . . . . . . Shots Hit Robots 204 | . . 29 . . 39 10 15 50 6 55 Core Hits 91 | . . 9 . . 15 14 1 33 . 19 Critical Kills 1 | . . . . . . . . 1 . . Critical Parts Destroyed 8 | . . 1 . . . 2 3 2 . . Critical Strikes 17 | . . 1 . . . 2 3 10 . 1 Burn 1 | . . . . . . . . . . 1 Smash 9 | . . 1 . . . 2 3 3 . . Sever 7 | . . . . . . . . 7 . . Melee Attacks 159 | . . 4 . 17 4 21 17 50 3 43 Impact 85 | . . 4 . 17 4 21 17 17 . 5 Slashing 74 | . . . . . . . . 33 3 38 Piercing . | . . . . . . . . . . . Sneak Attacks 8 | . . 1 . . . 1 4 2 . . Combat Hostiles 3 | . . . . . . 1 . 2 . . Follow-up Attacks 1 | . . . . . . . . . . 1 Damage Inflicted 8729 | . 22 585 . . 597 1056 449 3523 103 2394 Guns 1580 | . . 380 . . 597 . . . . 603 Cannons . | . . . . . . . . . . . Explosions 1508 | . . . . . . 751 . 757 . . Melee 5385 | . . 205 . . . 296 449 2606 38 1791 Ramming 256 | . 22 . . . . 9 . 160 65 . Kinetic 1417 | . . 380 . . 597 . . . . 440 Thermal 163 | . . . . . . . . . . 163 Explosive 1508 | . . . . . . 751 . 757 . . Electromagnetic . | . . . . . . . . . . . Impact 1627 | . . 205 . . . 296 449 436 . 241 Slashing 3758 | . . . . . . . . 2170 38 1550 Piercing . | . . . . . . . . . . . Highest Corruption 14 | . . . . . . 6 4 13 14 14 Average Corruption 9 | . . . . . . 5 2 13 13 14 Corruption Purged 4 | . . . . . . . 4 . . . Corruption Blocked . | . . . . . . . . . . . Effects 61 | . . . . . . 16 3 1 15 26 Message Errors 15 | . . . . . . 4 . . 5 6 Matter Fused 13 | . . . . . . 3 . 1 3 6 Heat Flow Errors 4 | . . . . . . 3 . . . 1 Energy Discharges 10 | . . . . . . . 1 . 4 5 Parts Rejected 1 | . . . . . . . . . . 1 Parts Fused 1 | . . . . . . 1 . . . . Data Loss (minor) 10 | . . . . . . 3 2 . 2 3 Data Loss (major) 4 | . . . . . . 1 . . . 3 Alerts 2 | . . . . . . 1 . . . 1 Misdirections 1 | . . . . . . . . . 1 . Overload Shots . | . . . . . . . . . . . Overflow Damage 886 | . 2 62 . . . 168 275 185 15 179 Projectiles . | . . . . . . . . . . . Explosions 40 | . . . . . . 40 . . . . Melee 846 | . 2 62 . . . 128 275 185 15 179 Knockbacks 9 | . . . . . . 4 2 2 . 1 Impact 9 | . . . . . . 4 2 2 . 1 Kinetic . | . . . . . . . . . . . Secondary . | . . . . . . . . . . . Self-Inflicted Damage 34 | . 11 . . . . 23 . . . . Shots 1 | . . . . . . 1 . . . . Rammed 26 | . 2 . . . . 5 . 14 5 . Targets Rammed 32 | . 2 . . . . 6 . 19 5 . Kicked . | . . . . . . . . . . . Crushed 6 | . . . . . . 1 . 5 . . Highest Temperature 278 | . . 244 . 6 . 278 . 15 . 126 Average Temperature 82 | . . 115 . 4 . 121 . 5 . 45 Received Heat Transfer 3096 | . . 156 . 189 99 198 42 1271 . 1141 Siege Activations . | . . . . . . . . . . . Martial Activations . | . . . . . . . . . . . Shielding Activations . | . . . . . . . . . . . Robots Disrupted . | . . . . . . . . . . . Combat Hostiles . | . . . . . . . . . . . Robots Corrupted 10 | . 1 1 . . . 2 3 1 1 1 Combat Hostiles 6 | . 1 . . . . 2 . 1 1 1 Parts Fried 10 | . . 1 . . . 2 3 3 . 1 Impact Corruptions 28 | . 1 3 . . . 4 12 4 2 2 Robots Melted . | . . . . . . . . . . . Combat Hostiles . | . . . . . . . . . . . Parts Melted . | . . . . . . . . . . . Heat Transferred 359 | . . . . . . . . . . 359 Parts Sabotaged . | . . . . . . . . . . . Parts Stolen . | . . . . . . . . . . . Parts Stripped . | . . . . . . . . . . . Power Chain Reactions . | . . . . . . . . . . . Alert | -11 -10 -9 -8 -8 -8 -8 -7 -7 -7 -7 ------- Run | Yrd Mat Mat Mat Gar Mat Gar Fac Gar Fac Gar Maximum Alert Level 3 | . . . . 1 1 3 2 3 2 2 Low Security (%) 14 | 100 100 100 100 89 32 16 . . . . Level 1 46 | . . . . 10 67 34 97 36 22 79 Level 2 21 | . . . . . . 31 2 22 77 20 Level 3 17 | . . . . . . 17 . 40 . . Level 4 . | . . . . . . . . . . . Level 5 . | . . . . . . . . . . . High Security . | . . . . . . . . . . . Max Security . | . . . . . . . . . . . Peak Influence 965 | . 25 91 29 261 264 760 400 965 495 446 Initial 495 | . . 10 29 18 126 123 399 211 495 256 Average 412 | . 4 32 29 70 210 440 334 595 430 328 Influence Increases 2841 | . 35 115 . 263 272 667 213 914 22 340 Destroy 0b10 Robot/C 1460 | . 20 60 . . 120 420 120 480 20 220 Destroy 0b10 Robot/NC 110 | . . 25 . . 10 . 25 30 . 20 Destroy Leader 126 | . . 14 . . 32 20 20 20 . 20 Allied During Kill 108 | . . . . . . 59 19 30 . . Successful Hack 37 | . . . . 7 . 7 16 7 . . Disable Machine 15 | . . . . . 15 . . . . . Anti-Garrison Action 400 | . . . . . . 100 . 250 . 50 Destroy Structure 120 | . . 1 . 16 5 46 13 37 2 . Partial Spotted 30 | . . . . . 30 . . . . . Lose Combat Pursuer 435 | . 15 15 . 240 60 15 . 60 . 30 Influence Decreases 2405 | . 10 69 42 31 343 97 671 271 600 271 Entered New Map 1283 | . . 15 42 11 135 67 361 91 450 111 Time Decay 642 | . 10 54 . . 198 . 230 . 150 . Lost Part 300 | . . . . 20 10 10 . 100 . 160 Lost Ally 180 | . . . . . . 20 80 80 . . Squads Dispatched 5 | . . 2 . . 2 . 1 . . . Investigation 1 | . . 1 . . . . . . . . Extermination 1 | . . . . . . . 1 . . . Reinforcement 3 | . . 1 . . 2 . . . . . Assault . | . . . . . . . . . . . Garrison . | . . . . . . . . . . . Intercept . | . . . . . . . . . . . Searches Triggered . | . . . . . . . . . . . Construction Impeded . | . . . . . . . . . . . Haulers Reinforced . | . . . . . . . . . . . Active Scanning Responses . | . . . . . . . . . . . Cargo Convoy Interrupts . | . . . . . . . . . . . Stealth | -11 -10 -9 -8 -8 -8 -8 -7 -7 -7 -7 --------- Run | Yrd Mat Mat Mat Gar Mat Gar Fac Gar Fac Gar Distress Signals 4 | . 1 . . . . . 1 1 1 . Communications Jammed . | . . . . . . . . . . . Distress Signals . | . . . . . . . . . . . Times Spotted 146 | . 4 11 . 26 17 18 8 42 4 16 Peak Tracking Total 12 | . 5 6 . 12 4 4 3 8 3 7 Tactical Retreats 16 | . 1 1 . 5 3 1 . 4 . 1 Traps | -11 -10 -9 -8 -8 -8 -8 -7 -7 -7 -7 ------- Run | Yrd Mat Mat Mat Gar Mat Gar Fac Gar Fac Gar Traps Triggered 12 | . . 1 . 5 . 1 2 2 1 . Indirectly . | . . . . . . . . . . . Trap Hack Attempts . | . . . . . . . . . . . Triggered . | . . . . . . . . . . . Disarmed . | . . . . . . . . . . . Reprogrammed . | . . . . . . . . . . . Reused . | . . . . . . . . . . . Traps Extracted . | . . . . . . . . . . . Installed . | . . . . . . . . . . . Triggered . | . . . . . . . . . . . Machines | -11 -10 -9 -8 -8 -8 -8 -7 -7 -7 -7 ---------- Run | Yrd Mat Mat Mat Gar Mat Gar Fac Gar Fac Gar Machines Disabled 7 | . . . . . 1 2 . 3 . 1 Max in Single Turn 1 | . . . . . 1 1 . 1 . 1 Garrison Relay 6 | . . . . . . 2 . 3 . 1 Machines Repaired . | . . . . . . . . . . . Machines Dismantled . | . . . . . . . . . . . Machines Sabotaged . | . . . . . . . . . . . Overloaded Fab Kills . | . . . . . . . . . . . Hacking | -11 -10 -9 -8 -8 -8 -8 -7 -7 -7 -7 --------- Run | Yrd Mat Mat Mat Gar Mat Gar Fac Gar Fac Gar Machines Accessed 12 | . . . 1 1 2 2 3 2 1 . Terminals 8 | . . . . 1 1 2 2 2 . . Fabricators . | . . . . . . . . . . . Repair Stations . | . . . . . . . . . . . Recycling Units . | . . . . . . . . . . . Scanalyzers . | . . . . . . . . . . . Garrison Access 4 | . . . 1 . 1 . 1 . 1 . Total Hacks 21 | . . . 2 1 2 6 5 4 1 . Successful 10 | . . . 1 1 1 2 2 2 1 . Failed 11 | . . . 1 . 1 4 3 2 . . Catastrophic 3 | . . . . . . 1 2 . . . Database Lockouts . | . . . . . . . . . . . Manual 3 | . . . . . . 3 . . . . Terminals 16 | . . . . 1 1 6 4 4 . . Fabricators . | . . . . . . . . . . . Repair Stations . | . . . . . . . . . . . Recycling Units . | . . . . . . . . . . . Scanalyzers . | . . . . . . . . . . . Garrison Access 5 | . . . 2 . 1 . 1 . 1 . Terminal Hacks 6 | . . . . 1 . 2 1 2 . . Open Door 3 | . . . . 1 . 1 . 1 . . Emergency Access Points 1 | . . . . . . . . 1 . . Registered Components 1 | . . . . . . . 1 . . . Security Stations 1 | . . . . . . 1 . . . . Fabricator Hacks . | . . . . . . . . . . . Repair Station Hacks . | . . . . . . . . . . . Recycling Unit Hacks . | . . . . . . . . . . . Scanalyzer . | . . . . . . . . . . . Garrison Access Hacks 4 | . . . 1 . 1 . 1 . 1 . Unlock Access 4 | . . . 1 . 1 . 1 . 1 . Unauthorized Hacks . | . . . . . . . . . . . Terminals . | . . . . . . . . . . . Fabricators . | . . . . . . . . . . . Repair Stations . | . . . . . . . . . . . Recycling Units . | . . . . . . . . . . . Scanalyzers . | . . . . . . . . . . . Garrison Access . | . . . . . . . . . . . Data Cores Recovered . | . . . . . . . . . . . Used . | . . . . . . . . . . . Hacking Detections 8 | . . . 1 . . 1 3 2 1 . Full Trace Events . | . . . . . . . . . . . Feedback Events . | . . . . . . . . . . . Feedback Blocked . | . . . . . . . . . . . Robot Schematics Acquired . | . . . . . . . . . . . Robots Built . | . . . . . . . . . . . Authchips . | . . . . . . . . . . . Time . | . . . . . . . . . . . Total Robot Build Rating . | . . . . . . . . . . . Part Schematics Acquired . | . . . . . . . . . . . Parts Built . | . . . . . . . . . . . Authchips . | . . . . . . . . . . . Time . | . . . . . . . . . . . Total Part Build Rating . | . . . . . . . . . . . Parts Repaired . | . . . . . . . . . . . Time . | . . . . . . . . . . . Parts Recycled . | . . . . . . . . . . . Recycled Matter . | . . . . . . . . . . . Retrieved Matter . | . . . . . . . . . . . Retrieved Components . | . . . . . . . . . . . Parts Scanalyzed . | . . . . . . . . . . . Part Schematics Acquired . | . . . . . . . . . . . Parts Damaged . | . . . . . . . . . . . Bothacking | -11 -10 -9 -8 -8 -8 -8 -7 -7 -7 -7 ------------ Run | Yrd Mat Mat Mat Gar Mat Gar Fac Gar Fac Gar Used RIF Installer 3 | . . . . 1 . 1 . 1 . . Alert ID Control 1 | . . . . . . . . 1 . . Structural Interface 1 | . . . . . . 1 . . . . Robots Hacked 17 | . . . . . . . 5 6 3 3 Non-combat 4 | . . . . . . . 3 . 1 . Combat 13 | . . . . . . . 2 6 2 3 Robot Hacks Applied 20 | . . . . . . . 6 6 5 3 parse_system 2 | . . . . . . . . 1 1 . map_walls 1 | . . . . . . . 1 . . . ignore_parts 1 | . . . . . . . 1 . . . map_route 2 | . . . . . . . 1 . 1 . mark_security 1 | . . . . . . . . . 1 . find_garrison 2 | . . . . . . . 1 . 1 . scatter_targeting 2 | . . . . . . . . . . 2 amplify_resonance 4 | . . . . . . . 1 3 . . reboot_system 1 | . . . . . . . . 1 . . overwrite_iff 2 | . . . . . . . . . 1 1 formatsys_high 2 | . . . . . . . 1 1 . . Relay Couplers Released 21 | . . . . . . 7 . 11 . 3 Machine Destruction 21 | . . . . . . 7 . 11 . 3 Attached 11 | . . . . . . 2 2 1 2 4 Fabnet Peak Effective % . | . . . . . . . . . . . Robots Rewired 8 | . . . . . . 6 . 2 . . Allies Hacked . | . . . . . . . . . . . Hacks Repelled . | . . . . . . . . . . . Allies | -11 -10 -9 -8 -8 -8 -8 -7 -7 -7 -7 -------- Run | Yrd Mat Mat Mat Gar Mat Gar Fac Gar Fac Gar Total Allies 12 | . . . . . . 6 1 3 1 1 Largest Group 5 | . . . . . . 5 5 2 1 1 Highest-Rated Group 109 | . . . . . . 109 101 56 12 12 Highest-Rated Ally 39 | . . . . . . 39 39 32 12 12 Total Orders . | . . . . . . . . . . . Ally Attacks 88 | . . . . . . 27 20 40 1 . Total Damage 1391 | . . . . . . 282 396 699 14 . Kills 18 | . . . . . . 5 7 6 . . Allies Corrupted . | . . . . . . . . . . . Allies Melted . | . . . . . . . . . . . Intel | -11 -10 -9 -8 -8 -8 -8 -7 -7 -7 -7 ------- Run | Yrd Mat Mat Mat Gar Mat Gar Fac Gar Fac Gar Active Infowar (turns) 1879 | . . . . . 215 800 491 139 234 . Optics 1645 | . . . . . 215 800 491 139 . . T.N.C. 234 | . . . . . . . . . 234 . Robot Analysis Total . | . . . . . . . . . . . Derelict Logs Recovered . | . . . . . . . . . . . Drone Launches . | . . . . . . . . . . . Drone Recoveries . | . . . . . . . . . . . Exploration | -11 -10 -9 -8 -8 -8 -8 -7 -7 -7 -7 ------------- Run | Yrd Mat Mat Mat Gar Mat Gar Fac Gar Fac Gar Turns Passed 4743 | 4 30 128 13 274 419 800 491 1682 300 602 Spaces Moved 3020 | 1 56 108 33 432 380 428 354 788 162 278 Core 131 | 1 56 53 . . 7 . . . . 14 Treads 1501 | . . . . . 110 428 8 719 162 74 Legs 190 | . . . . . . . . . . 190 Wheels 415 | . . . . . . . 346 69 . . Hover . | . . . . . . . . . . . Flight 783 | . . 55 33 432 263 . . . . . Fastest Speed 29 | 50 50 37 37 37 29 145 100 100 160 50 Average Speed 114 | 50 50 47 37 37 70 146 101 168 160 129 Slowest Speed 240 | 50 50 100 37 40 145 148 148 240 160 240 Overloaded Moves . | . . . . . . . . . . . Propulsion Burnouts . | . . . . . . . . . . . Robots Hopped 15 | . . 2 . 13 . . . . . . Potential Cave-ins . | . . . . . . . . . . . Cave-ins Triggered . | . . . . . . . . . . . Exploration Rate (%) 29 | 1 16 20 10 67 34 46 10 85 6 28 Regions Visited 10 Branch Regions . Pre-discovered Areas . | . . . . . . . . . . . Known Exits Taken 4 | . . . 1 . 1 . 1 . 1 . Unknown Exits Taken 3 | 1 1 1 . . . . . . . . Scrap Searched . | . . . . . . . . . . . Spaces Dug 35 | . . . . 6 4 4 6 13 2 . Terrain Destroyed 76 | . . . . 6 4 16 6 38 2 4 Melee 21 | . . . . 6 4 3 6 . 2 . Projectile 4 | . . . . . . . . . . 4 AOE 51 | . . . . . . 13 . 38 . . Terrain Rammed . | . . . . . . . . . . . Walls Destroyed . | . . . . . . . . . . . Machines Disabled . | . . . . . . . . . . . Actions | -11 -10 -9 -8 -8 -8 -8 -7 -7 -7 -7 --------- Run | Yrd Mat Mat Mat Gar Mat Gar Fac Gar Fac Gar Total 3854 | 5 57 144 33 504 453 561 456 1035 193 413 Wait 133 | . . 1 . 7 6 15 49 33 3 19 Move 2987 | . 55 103 33 408 380 427 354 787 162 278 Hop 12 | . . 2 . 10 . . . . . . Pick Up 67 | . . 5 . . 4 4 2 38 4 10 Fast Attach 56 | . . 3 . . 15 4 7 9 1 17 Attach 41 | 2 . 4 . . 2 4 2 15 5 7 Detach 12 | . . 3 . . . 2 . 5 1 1 Swap 12 | . . 1 . . 1 5 1 3 . 1 Drop 66 | 3 . 2 . . 7 7 8 27 3 9 Fire 117 | . . 16 . . 34 6 10 16 6 29 Melee 158 | . . 4 . 17 4 21 17 50 3 42 Ram 2 | . 2 . . . . . . . . . Kick . | . . . . . . . . . . . Crush 30 | . . . . . . 6 . 19 5 . Escape Stasis 68 | . . . . 62 . . 6 . . . Rewire 93 | . . . . . . 60 . 33 . . Trap . | . . . . . . . . . . . Miscellaneous . | . . . . . . . . . . . Route ------- -11/Scrapyard -10/Materials -9/Materials -8/Materials -8/Garrison (discovered 3 exits: *Mat x3) -8/Materials -8/Garrison -7/Factory (discovered 2 exits: [Fac] / Gar) -7/Garrison (discovered 3 exits: *Fac x3) -7/Factory -7/Garrison History --------- Turn | Location | Event 1 | -11/Scrapyard | Released all parts (6) 5 | -11/Scrapyard | Discovered new exit (range 0) 5 | -11/Scrapyard | Entered Materials 28 | -10/Materials | Discovered new exit (range 16) 35 | -10/Materials | Entered another Materials area 35 | -9/Materials | Evolved 2 slots: Propulsion x2 159 | -9/Materials | Discovered new exit (range 10) 163 | -9/Materials | Entered another Materials area 163 | -8/Materials | Evolved 2 slots: Utility x2 176 | -8/Materials | Identified exit to Garrison 176 | -8/Materials | Entered Garrison 248 | -8/Garrison | Discovered new exit (range 8) 316 | -8/Garrison | Build established: Mutant 322 | -8/Garrison | Triggered checkpoint 342 | -8/Garrison | Discovered new exit (range 8) 366 | -8/Garrison | Triggered checkpoint 410 | -8/Garrison | Triggered checkpoint 410 | -8/Garrison | Triggered checkpoint 429 | -8/Garrison | Installed Relay Interface Framework 434 | -8/Garrison | Triggered checkpoint 443 | -8/Garrison | Core integrity fell below 50% 445 | -8/Garrison | Discovered new exit (range 12) 450 | -8/Garrison | Entered Materials 869 | -8/Materials | Identified exit to Garrison 869 | -8/Materials | Entered Garrison 878 | -8/Garrison | Learned Factory security intel 999 | -8/Garrison | Triggered checkpoint 1024 | -8/Garrison | Garrison Relay disabled 1072 | -8/Garrison | Core integrity fell below 20% 1239 | -8/Garrison | Triggered checkpoint 1277 | -8/Garrison | Triggered checkpoint 1304 | -8/Garrison | Expanded RIF knowledge: Structural Interface 1362 | -8/Garrison | Triggered checkpoint 1448 | -8/Garrison | Discovered new exit (range 11) 1525 | -8/Garrison | Triggered checkpoint 1529 | -8/Garrison | Triggered checkpoint 1541 | -8/Garrison | Garrison Relay disabled 1669 | -8/Garrison | Entered Factory 1669 | -7/Factory | Accompanied by 5 allies 1669 | -7/Factory | Evolved 2 slots: Utility x2 1807 | -7/Factory | Discovered new exit (range 55) 1901 | -7/Factory | Build established: Bothacker-Mutant 1907 | -7/Factory | Lost 3 allies 2160 | -7/Factory | Identified exit to Garrison 2160 | -7/Factory | Entered Garrison 2160 | -7/Garrison | Accompanied by 2 allies 2380 | -7/Garrison | Triggered checkpoint 2461 | -7/Garrison | Garrison Relay disabled 2774 | -7/Garrison | Triggered checkpoint 2896 | -7/Garrison | Triggered checkpoint 2921 | -7/Garrison | Garrison Relay disabled 3029 | -7/Garrison | Discovered new exit (range 10) 3069 | -7/Garrison | Spotted B-75 Beast 3069 | -7/Garrison | Spotted B-75 Beast 3109 | -7/Garrison | Garrison Relay disabled 3148 | -7/Garrison | Triggered checkpoint 3262 | -7/Garrison | Triggered checkpoint 3347 | -7/Garrison | Discovered new exit (range 8) 3550 | -7/Garrison | Triggered checkpoint 3552 | -7/Garrison | Triggered checkpoint 3630 | -7/Garrison | Lost 5 parts (1p3u1w) 3757 | -7/Garrison | Expanded RIF knowledge: Alert ID Control 3813 | -7/Garrison | Discovered new exit (range 11) 3824 | -7/Garrison | System corruption reached 10% 3842 | -7/Garrison | Entered Factory 3850 | -7/Factory | Lost 4 parts (1p2n1u) 4142 | -7/Factory | Identified exit to Garrison 4142 | -7/Factory | Entered Garrison 4308 | -7/Garrison | Core integrity fell below 50% 4350 | -7/Garrison | Core integrity fell below 20% 4372 | -7/Garrison | Lost 10 parts (2p3n3u2w) 4554 | -7/Garrison | Lost 3 parts (1p2w) 4602 | -7/Garrison | Triggered checkpoint 4618 | -7/Garrison | Garrison Relay disabled 4744 | -7/Garrison | Destroyed by P-60 Hacker with Shock Rifle Last Messages --------------- 04678_ Destroyed Arm. Wheel. 04681_ Sneak attack on C-30 ARC. 04681_ Destroyed Arm. Wheel. 04684_ Sneak attack on C-30 ARC. 04684_ C-30 ARC destroyed. 04687_ Acquired 16 matter. 04690_ System corrupted: Heat flow error (+127). 04702_ RIF reveals location of phase wall. 04707_ System corrupted: Energy discharge (-29). 04719_ C-30 ARC bursts open, deploying its payload. 04719_ P-60 Hacker unfolds itself. 04720_ Discarded Relay Coupler [NC]. 04722_ System corrupted: Matter fused (-7). 04733_ Carbon-fiber Leg destroyed. 04735_ S-27 Virus destroyed. 04735_ Aluminum Leg destroyed. 04738_ Acquired 7 matter. 04739_ S-27 Virus destroyed. 04741_ SERW,R95 MDRC9XZXG#DZH1O:P/QQHTJ:2PM 04741_ Aluminum Leg destroyed. Map ----- +----------------------------------------------------+ | ???????????????# ## !!!! #???????????????? | | ???????????????# ## *% #???????????????? | | ???????????????### + * #???????????????? | | ?????????????????# #############???????????????? | | ?????????????????# #???????????????????????????? | | ?????????????????# #???????????????????????????? | | ?????????????????# #???????????????????????????? | | ?????????????????# #############???????????????? | | ?????????????????# ##""""""""""#???????????????? | | ?????????????????# ##"!!!!!!"""#???????????????? | | ?????????????????# ## ""#???????????????? | | ?????????????????# ## !"#???????????????? | | ?????????????????# ## !"#???????????????? | | ?????????????????# %+*= !"#???????????????? | | ?????????????????# +%[ !"#???????????????? | | ?????????????????# ## ""#???????????????? | | ?????????????????# ##" !!"""#???????????????? | | ?????????????????# ##""""""""""#???????????????? | | ?????????????????# #############???????????????? | | ?????????????????# #???????????????????????????? | | ?????????????????# #???????????????????????????? | | ??################ ############????????????????? | | ??# + #????????????????? | | ??# + p[ #????????????????? | | ??### ##### ## ####[#### #????????????????? | | ???#"" ""#??#% %## #??#@#??# #????????????????? | | ???#######??##+### #??#s#??# #????????????????? | | ?????????????# #?# #??# #??# #????????????????? | | ?????????????# #?# #??# #??# #????????????????? | | ?????????????# #?# #??# #??# #????????????????? | | ?????????????# ### ####s####++##""""##?????????? | | ?????????????# + % #?????? | | ?????????????##### ^ ????? | | ?????????????????# ^ ????? | | ?????????????????############ ## ## ##????? | | ????????????????????????????# #? #??? #?????? | | ????????????????????????????" ? ?????????? | | ????????????????????????????" ???????? | | ????????????????????????????" ??????? | | ????????????????????????????" ??????? | | ????????????????????????????# ## ## ???????? | | ????????????????????????????# #? #?? ???????? | | ????????????????????????????# ?? ??????????? | | ????????????????????????????? ?? ??????????? | | ????????????????????????????? ??? ????????????? | | ?????????????????????????????# #????????????????? | | ?????????????????????????????? ?????????????????? | | ?????????????????????????????????????????????????? | | ?????????????????????????????????????????????????? | | ?????????????????????????????????????????????????? | +----------------------------------------------------+ Best States ------------- Heat Dissipation 53 Energy Generation 23 Energy Capacity 340 Matter Stores 300 Matter Capacity 300 Sight Range 18 Terrain Scan Density 10 Additional Mass Support 12 Armor Coverage 600 Resistance: KI 20 Resistance: TH 10 Core Shielding 20 Phase Shifting 5 Evasion (%) 64 Melee Accuracy 6 Recoil Reduction 4 Relay Coupler Types 4 Relay Coupler Value 125 Authchip Count 4 Item Schematics ----------------- None Robot Schematics ------------------ None Fabricated ------------ Nothing Repaired ---------- Nothing Alien Tech Used ----------------- None Achievements -------------- None Challenges ------------ None Game ------ Seed AlloyStormTrap Manual? 0 Play Time 00:53:57 Cumulative 535.7 hours Start 2025.06.12 @ 05:22:02 End 2025.06.12 @ 06:16:00 Sessions 1 Manual Loads 0 Difficulty Rogue Special Mode None Game No. 635 Rogue 635 Adventurer 0 Explorer 0 Win Type - Total 19 Types 13/0/5/1/0/0/0/0/0/0 Lore% 83 Gallery% 82 Achievement% 82 Wizard Run 0 Options --------- Layout 0 ASCII 0 Keyboard 0 Movement Numpad Keybinds 0 Fullscreen 1 Font 18/SmallcapsGlow Map View 76x50 Zoom Use 0% Tactical HUD 1 Map Filters NONE Filters NONE Steam 1 RUN: 7c8c7b3f-1a12-48eb-b5c0-bb237c8c05df